fUSD/lending_fUSD_20240322
["ID","MTS","AMOUNT","RATE_DAILY","PERIOD"]
[320080846,1711139486683,-530.62,0.00022739,2]
[320080847,1711139486692,-500.0,0.00022739,2]
[320080848,1711139486701,-543.21,0.00022739,2]
[320080849,1711139486711,-939.51846172,0.00022739,2]
[320080850,1711139487730,-435.16755387,0.00020799,2]
[320080928,1711140430108,-163.56637559,0.00017551,2]
[320081014,1711140632370,-534.40851978,0.00017544,2]
[320081015,1711140632380,-1000.0,0.00017544,2]
[320081016,1711140632389,-155.0,0.00017545,2]
[320081017,1711140632399,-1238.94442072,0.00017552,2]
[320081018,1711140632409,-172.85657021,0.00017578,2]
[320081019,1711140632419,-150.0,0.00017677,2]
[320081020,1711140632428,-150.0,0.00017677,2]
[320081021,1711140632437,-300.0,0.00017677,2]
[320081022,1711140632446,-321.72947893,0.00017678,2]
[320081023,1711140632457,-1029.18721227,0.00017678,2]
[320081024,1711140632466,-962.36349289,0.00017678,2]
[320081025,1711140632475,-302.54,0.0001789,2]
[320081026,1711140632485,-172.85657018,0.00018638,2]
[320081027,1711140632494,-1550.0,0.00019,3]
[320081028,1711140632505,-499.99,0.000192,2]
[320081029,1711140632517,-128.39967384,0.00019698,2]
[320081030,1711140632535,-44.45689634,0.00019698,2]
[320081031,1711140632544,-3843.36723217,0.00019724,2]
[320081032,1711140632554,-870.4,0.00019725,2]
[320081033,1711140632563,-1179.33,0.00019728,2]
[320081034,1711140632572,-2751.0,0.0001973,2]
[320081035,1711140632582,-217.88,0.00019871,2]
[320081036,1711140632591,-250.0,0.00019881,2]
[320081037,1711140632600,-819.0,0.000199,2]
[320081038,1711140632609,-897.48,0.00019906,2]
[320081039,1711140632618,-510.22,0.00019907,2]
[320081040,1711140632628,-162.0,0.00019949,2]
[320081041,1711140632637,-162.77,0.00020058,2]
[320081042,1711140632647,-6716.2131,0.00020114,2]
[320081043,1711140632656,-1071.374,0.00020138,2]
[320081044,1711140632666,-302.54,0.00020154,2]
[320081045,1711140632675,-162.77,0.00020163,2]
[320081046,1711140632684,-452.0,0.00020252,2]
[320081047,1711140632694,-154.0,0.00020252,2]
[320081048,1711140632704,-157.0,0.00020252,2]
[320081049,1711140632713,-162.77,0.00020267,2]
[320081050,1711140632722,-162.77,0.00020372,2]
[320081051,1711140632732,-500.0,0.0002041,2]
[320081052,1711140632743,-162.77,0.00020476,2]
[320081053,1711140632753,-4221.6541897,0.000205,2]
[320081054,1711140632765,-162.77,0.00020581,2]
[320081055,1711140632774,-23537.82285902,0.00020637,2]
[320081056,1711140632784,-162.77,0.00020685,2]
[320081058,1711140632794,-718.61539143,0.000207,3]
[320081060,1711140632806,-211.8319,0.000207,2]
[320081062,1711140632816,-172.85657018,0.00020757,2]
[320081064,1711140632826,-42643.148,0.0002078,2]
[320081066,1711140632836,-162.77,0.0002079,2]
[320081068,1711140632846,-786.28716571,0.00020798,2]
[320081070,1711140632857,-167.00369201,0.00020879,2]
[320081072,1711140632868,-162.77,0.00020895,2]
[320081074,1711140632877,-162.77,0.00020999,2]
[320081077,1711140632887,-712.02089859,0.00021,2]
[320081079,1711140632897,-1600.0,0.00021,3]
[320081081,1711140632906,-415.11,0.00021096,2]
[320081082,1711140632915,-7547.61,0.00021096,2]
[320081083,1711140632924,-2000.0,0.00021096,2]
[320081084,1711140632934,-162.77,0.00021104,2]
[320081085,1711140632943,-15513.87984248,0.000214,2]
[320081086,1711140632952,-500.0,0.00021506,2]
[320081087,1711140632961,-3179.0,0.00021563,2]
[320081088,1711140632970,-452.0,0.00021583,2]
[320081089,1711140632979,-154.0,0.00021583,2]
[320081090,1711140632989,-157.0,0.00021583,2]
[320081091,1711140633000,-200.0,0.00021594,2]
[320081092,1711140633011,-180.0,0.00021706,2]
[320081093,1711140633021,-152.01480556,0.00021717,2]
[320081094,1711140633031,-500.0,0.0002178,2]
[320081095,1711140633040,-10000.0,0.00021817,2]
[320081096,1711140633050,-2378.1285,0.00021817,2]
[320081097,1711140633060,-325.1085,0.00021817,2]
[320081098,1711140633071,-295.8813678,0.00021817,2]
[320081099,1711140633082,-4321.75321079,0.00021817,2]
[320081100,1711140633092,-172.85657018,0.00021817,2]
[320081101,1711140633102,-318.1733528,0.00021817,2]
[320081102,1711140633112,-160.20850592,0.00021907,2]
[320081103,1711140633122,-192.12,0.00021907,2]
[320081104,1711140633132,-331.81671749,0.00021915,2]
[320081105,1711140633142,-5508.50896888,0.00021915,2]
[320081106,1711140633151,-548.19956647,0.00021915,2]
[320081107,1711140633161,-272.03353629,0.00021916,2]
[320081108,1711140633170,-500.0,0.00021916,2]
[320081109,1711140633180,-500.0,0.00021916,2]
[320081110,1711140633189,-500.0,0.00021916,2]
[320081111,1711140633198,-500.0,0.00021916,2]
[320081112,1711140633207,-500.0,0.00021916,2]
[320081113,1711140633219,-500.0,0.00021916,2]
[320081114,1711140633228,-500.0,0.00021916,2]
[320081115,1711140633239,-500.0,0.00021916,2]
[320081116,1711140633248,-500.0,0.00021916,2]
[320081117,1711140633258,-500.0,0.00021916,2]
[320081118,1711140633268,-500.0,0.00021916,2]
[320081119,1711140633279,-500.0,0.00021916,2]
[320081120,1711140633288,-500.0,0.00021916,2]
[320081121,1711140633299,-500.0,0.00021916,2]
[320081122,1711140633308,-500.0,0.00021916,2]
[320081123,1711140633318,-353.32,0.00021916,2]
[320081124,1711140633327,-500.0,0.00021917,2]
[320081125,1711140633338,-399.66038479,0.00021917,2]
[320081126,1711140633348,-572.53927042,0.00021917,2]
[320081127,1711140633359,-500.0,0.00021917,2]
[320081128,1711140633372,-500.0,0.00021917,2]
[320081129,1711140633383,-501.69174489,0.00021917,2]
[320081130,1711140633395,-518.36541809,0.00021917,2]
[320081131,1711140633407,-500.0,0.00021917,2]
[320081132,1711140633420,-1056.07,0.00021917,2]
[320081133,1711140633430,-500.0,0.00021917,2]
[320081134,1711140633441,-500.0,0.00021917,2]
[320081135,1711140633451,-500.0,0.00021917,2]
[320081136,1711140633461,-500.0,0.00021917,2]
[320081137,1711140633471,-500.0,0.00021917,2]
[320081138,1711140633482,-500.0,0.00021917,2]
[320081139,1711140633492,-500.0,0.00021917,2]
[320081140,1711140633502,-552.41292901,0.00021917,2]
[320081141,1711140633514,-500.0,0.00021917,2]
[320081142,1711140633524,-500.0,0.00021917,2]
[320081143,1711140633534,-507.68041699,0.00021917,2]
[320081144,1711140633544,-337.20941248,0.00021917,2]
[320081145,1711140633553,-500.0,0.00021917,2]
[320081146,1711140633563,-500.0,0.00021917,2]
[320081147,1711140633573,-500.0,0.00021917,2]
[320081148,1711140633583,-500.0,0.00021917,2]
[320081149,1711140633593,-500.0,0.00021917,2]
[320081150,1711140633603,-606.03,0.00021917,2]
[320081151,1711140633614,-500.0,0.00021917,2]
[320081152,1711140633624,-500.0,0.00021917,2]
[320081153,1711140633633,-500.0,0.00021917,2]
[320081154,1711140633643,-500.0,0.00021917,2]
[320081155,1711140633652,-500.0,0.00021917,2]
[320081156,1711140633663,-855.25,0.00021917,2]
[320081157,1711140633673,-500.0,0.00021917,2]
[320081158,1711140633683,-508.13912541,0.00021917,2]
[320081159,1711140633692,-500.0,0.00021917,2]
[320081160,1711140633702,-500.0,0.00021917,2]
[320081161,1711140633712,-500.0,0.00021917,2]
[320081162,1711140633721,-500.0,0.00021917,2]
[320081163,1711140633731,-500.0,0.00021917,2]
[320081164,1711140633740,-500.0,0.00021917,2]
[320081165,1711140633750,-500.0,0.00021917,2]
[320081166,1711140633761,-500.0,0.00021917,2]
[320081167,1711140633770,-500.0,0.00021917,2]
[320081168,1711140633780,-500.0,0.00021917,2]
[320081169,1711140633789,-500.0,0.00021917,2]
[320081170,1711140633798,-960.49,0.00021917,2]
[320081171,1711140633807,-500.0,0.00021917,2]
[320081172,1711140633818,-500.0,0.00021917,2]
[320081173,1711140633828,-500.0,0.00021917,2]
[320081174,1711140633837,-500.0,0.00021917,2]
[320081175,1711140633848,-500.0,0.00021917,2]
[320081176,1711140633859,-500.0,0.00021917,2]
[320081177,1711140633869,-500.0,0.00021917,2]
[320081178,1711140633880,-500.0,0.00021917,2]
[320081179,1711140633892,-503.67493293,0.00021917,2]
[320081180,1711140633903,-500.0,0.00021917,2]
[320081181,1711140633915,-1360.08,0.00021917,2]
[320081182,1711140633925,-500.0,0.00021917,2]
[320081183,1711140633936,-500.0,0.00021917,2]
[320081184,1711140633945,-500.0,0.00021917,2]
[320081185,1711140633954,-707.97,0.00021917,2]
[320081186,1711140633964,-500.0,0.00021917,2]
[320081187,1711140633973,-500.0,0.00021917,2]
[320081188,1711140633982,-645.45254453,0.00021917,2]
[320081189,1711140633991,-787.87,0.00021917,2]
[320081190,1711140634000,-500.0,0.00021917,2]
[320081191,1711140634011,-500.0,0.00021917,2]
[320081192,1711140634021,-500.0,0.00021917,2]
[320081193,1711140634030,-1109.73,0.00021917,2]
[320081194,1711140634039,-524.99,0.00021917,2]
[320081195,1711140634050,-500.0,0.00021917,2]
[320081196,1711140634059,-500.0,0.00021917,2]
[320081197,1711140634068,-500.0,0.00021917,2]
[320081198,1711140634078,-500.0,0.00021917,2]
[320081199,1711140634087,-500.0,0.00021917,2]
[320081200,1711140634096,-500.0,0.00021917,2]
[320081201,1711140634107,-504.91981504,0.00021917,2]
[320081202,1711140634116,-507.34987988,0.00021917,2]
[320081203,1711140634126,-517.09,0.00021917,2]
[320081204,1711140634135,-997.82,0.00021917,2]
[320081205,1711140634145,-500.0,0.00021917,2]
[320081206,1711140634155,-533.77,0.00021917,2]
[320081207,1711140634165,-566.74,0.00021917,2]
[320081208,1711140634175,-500.0,0.00021917,2]
[320081209,1711140634184,-500.0,0.00021917,2]
[320081210,1711140634193,-726.77,0.00021917,2]
[320081211,1711140634203,-500.0,0.00021917,2]
[320081212,1711140634212,-500.0,0.00021917,2]
[320081213,1711140634221,-500.0,0.00021917,2]
[320081214,1711140634230,-958.22,0.00021917,2]
[320081215,1711140634239,-500.0,0.00021917,2]
[320081216,1711140634248,-650.53,0.00021917,2]
[320081217,1711140634257,-500.0,0.00021917,2]
[320081218,1711140634268,-582.61414829,0.00021917,2]
[320081219,1711140634277,-500.0,0.00021917,2]
[320081220,1711140634286,-724.63,0.00021917,2]
[320081221,1711140634295,-500.0,0.00021917,2]
[320081222,1711140634305,-500.0,0.00021917,2]
[320081223,1711140634314,-500.0,0.00021917,2]
[320081224,1711140634323,-860.58,0.00021917,2]
[320081225,1711140634332,-501.39099268,0.00021917,2]
[320081226,1711140634342,-500.0,0.00021917,2]
[320081227,1711140634351,-500.0,0.00021917,2]
[320081228,1711140634362,-500.0,0.00021917,2]
[320081229,1711140634371,-500.0,0.00021917,2]
[320081230,1711140634381,-500.0,0.00021917,2]
[320081231,1711140634390,-500.0,0.00021917,2]
[320081232,1711140634400,-500.0,0.00021917,2]
[320081233,1711140634412,-315.65731329,0.00021917,2]
[320081234,1711140634422,-1332.9,0.00021917,2]
[320081235,1711140634431,-588.89409942,0.00021917,2]
[320081236,1711140634440,-500.0,0.00021917,2]
[320081237,1711140634449,-500.0,0.00021917,2]
[320081238,1711140634458,-500.0,0.00021917,2]
[320081239,1711140634468,-500.0,0.00021917,2]
[320081240,1711140634478,-729.36,0.00021917,2]
[320081241,1711140634488,-500.0,0.00021917,2]
[320081242,1711140634498,-500.0,0.00021917,2]
[320081243,1711140634512,-773.15,0.00021917,2]
[320081244,1711140634522,-500.0,0.00021917,2]
[320081245,1711140634531,-500.0,0.00021917,2]
[320081246,1711140634540,-500.0,0.00021917,2]
[320081247,1711140634550,-626.42,0.00021917,2]
[320081248,1711140634559,-500.0,0.00021917,2]
[320081249,1711140634569,-500.0,0.00021917,2]
[320081250,1711140634578,-776.61,0.00021917,2]
[320081251,1711140634587,-500.0,0.00021917,2]
[320081252,1711140634597,-619.43,0.00021917,2]
[320081253,1711140634606,-500.0,0.00021917,2]
[320081254,1711140634615,-500.0,0.00021917,2]
[320081255,1711140634625,-621.13,0.00021917,2]
[320081256,1711140634634,-500.0,0.00021917,2]
[320081257,1711140634644,-500.0,0.00021917,2]
[320081258,1711140634653,-500.0,0.00021917,2]
[320081259,1711140634662,-156.68345508,0.00021917,2]
[320081260,1711140634672,-500.0,0.00021917,2]
[320081261,1711140634681,-500.0,0.00021917,2]
[320081262,1711140634691,-500.0,0.00021917,2]
[320081263,1711140634701,-500.0,0.00021917,2]
[320081264,1711140634710,-500.0,0.00021917,2]
[320081265,1711140634719,-1057.73,0.00021917,2]
[320081266,1711140634728,-500.0,0.00021917,2]
[320081267,1711140634738,-500.0,0.00021917,2]
[320081268,1711140634747,-906.37,0.00021917,2]
[320081269,1711140634756,-500.0,0.00021917,2]
[320081270,1711140634769,-500.0,0.00021917,2]
[320081271,1711140634778,-500.0,0.00021917,2]
[320081272,1711140634787,-500.0,0.00021917,2]
[320081273,1711140634796,-500.0,0.00021917,2]
[320081274,1711140634806,-500.0,0.00021917,2]
[320081275,1711140634816,-500.0,0.00021917,2]
[320081276,1711140634826,-1098.05,0.00021917,2]
[320081277,1711140634836,-635.43,0.00021917,2]
[320081278,1711140634847,-1063.37,0.00021917,2]
[320081279,1711140634856,-984.18,0.00021917,2]
[320081280,1711140634866,-500.0,0.00021917,2]
[320081281,1711140634876,-925.72,0.00021917,2]
[320081282,1711140634886,-500.0,0.00021917,2]
[320081283,1711140634895,-699.08,0.00021917,2]
[320081284,1711140634905,-587.06,0.00021917,2]
[320081285,1711140634915,-503.80345573,0.00021917,2]
[320081286,1711140634924,-500.0,0.00021917,2]
[320081287,1711140634934,-500.0,0.00021917,2]
[320081288,1711140634943,-500.0,0.00021917,2]
[320081289,1711140634953,-190.13874692,0.00021917,2]
[320081290,1711140634962,-500.0,0.00021917,2]
[320081291,1711140634971,-1352.35,0.00021917,2]
[320081292,1711140634981,-500.0,0.00021917,2]
[320081293,1711140634992,-500.0,0.00021917,2]
[320081294,1711140635001,-500.0,0.00021917,2]
[320081295,1711140635012,-500.0,0.00021917,2]
[320081296,1711140635021,-500.0,0.00021917,2]
[320081297,1711140635031,-500.0,0.00021917,2]
[320081298,1711140635040,-500.0,0.00021917,2]
[320081299,1711140635049,-773.17,0.00021917,2]
[320081300,1711140635059,-500.0,0.00021917,2]
[320081301,1711140635069,-500.0,0.00021917,2]
[320081302,1711140635078,-500.0,0.00021917,2]
[320081303,1711140635088,-500.0,0.00021917,2]
[320081304,1711140635098,-689.95,0.00021917,2]
[320081305,1711140635108,-489.73741487,0.00021917,2]
[320081306,1711140635118,-500.0,0.00021917,2]
[320081307,1711140635128,-500.0,0.00021917,2]
[320081308,1711140635137,-1927.65,0.00021917,2]
[320081309,1711140635147,-693.33,0.00021917,2]
[320081310,1711140635157,-500.0,0.00021917,2]
[320081311,1711140635167,-500.0,0.00021917,2]
[320081312,1711140635177,-500.0,0.00021917,2]
[320081313,1711140635187,-654.13,0.00021917,2]
[320081314,1711140635197,-500.0,0.00021917,2]
[320081315,1711140635207,-500.0,0.00021917,2]
[320081316,1711140635218,-530.27,0.00021917,2]
[320081317,1711140635228,-500.0,0.00021917,2]
[320081318,1711140635238,-500.0,0.00021917,2]
[320081319,1711140635248,-500.0,0.00021917,2]
[320081320,1711140635259,-1973.41,0.00021917,2]
[320081321,1711140635277,-500.0,0.00021917,2]
[320081322,1711140635288,-508.5449569,0.00021917,2]
[320081323,1711140635299,-500.0,0.00021917,2]
[320081324,1711140635310,-500.0,0.00021917,2]
[320081325,1711140635321,-1497.23,0.00021917,2]
[320081326,1711140635332,-500.0,0.00021917,2]
[320081327,1711140635344,-500.0,0.00021917,2]
[320081328,1711140635357,-505.20248523,0.00021917,2]
[320081329,1711140635368,-500.0,0.00021917,2]
[320081330,1711140635380,-500.0,0.00021917,2]
[320081331,1711140635664,-500.0,0.00021917,2]
[320081332,1711140635680,-500.0,0.00021917,2]
[320081333,1711140635691,-500.0,0.00021917,2]
[320081334,1711140635700,-500.0,0.00021917,2]
[320081335,1711140635711,-1371.29,0.00021917,2]
[320081336,1711140635721,-500.0,0.00021917,2]
[320081337,1711140635730,-500.0,0.00021917,2]
[320081338,1711140635740,-500.0,0.00021917,2]
[320081339,1711140635750,-500.0,0.00021917,2]
[320081340,1711140635761,-500.0,0.00021917,2]
[320081341,1711140635777,-1705.59,0.00021917,2]
[320081342,1711140635786,-1482.44,0.00021917,2]
[320081343,1711140635796,-500.0,0.00021917,2]
[320081344,1711140635806,-500.0,0.00021917,2]
[320081345,1711140635816,-948.59,0.00021917,2]
[320081346,1711140635826,-683.36,0.00021917,2]
[320081347,1711140635836,-500.0,0.00021917,2]
[320081348,1711140635845,-502.11403889,0.00021917,2]
[320081349,1711140635854,-500.0,0.00021917,2]
[320081350,1711140635864,-500.0,0.00021917,2]
[320081351,1711140635874,-1108.05,0.00021917,2]
[320081352,1711140635884,-991.59,0.00021917,2]
[320081353,1711140635893,-500.0,0.00021917,2]
[320081354,1711140635903,-500.0,0.00021917,2]
[320081355,1711140635913,-500.0,0.00021917,2]
[320081356,1711140635922,-500.0,0.00021917,2]
[320081357,1711140635932,-500.0,0.00021917,2]
[320081358,1711140635942,-1492.6,0.00021917,2]
[320081359,1711140635951,-500.0,0.00021917,2]
[320081360,1711140635961,-500.0,0.00021917,2]
[320081361,1711140635971,-1148.3,0.00021917,2]
[320081362,1711140635980,-500.0,0.00021917,2]
[320081363,1711140635990,-500.0,0.00021917,2]
[320081364,1711140635999,-1158.9,0.00021917,2]
[320081365,1711140636009,-1759.32,0.00021917,2]
[320081366,1711140636024,-941.88,0.00021917,2]
[320081367,1711140636033,-2167.01,0.00021917,2]
[320081368,1711140636043,-837.25,0.00021917,2]
[320081369,1711140636053,-1805.75,0.00021917,2]
[320081370,1711140636063,-502.04021483,0.00021917,2]
[320081371,1711140636073,-1367.87,0.00021917,2]
[320081372,1711140636082,-985.44,0.00021917,2]
[320081373,1711140636092,-1213.65,0.00021917,2]
[320081374,1711140636103,-503.28482983,0.00021917,2]
[320081375,1711140636112,-500.0,0.00021917,2]
[320081376,1711140636122,-500.0,0.00021917,2]
[320081377,1711140636132,-500.0,0.00021917,2]
[320081378,1711140636142,-1478.21,0.00021917,2]
[320081379,1711140636151,-1866.55,0.00021917,2]
[320081380,1711140636161,-208.21433332,0.00021917,2]
[320081381,1711140636172,-502.45705636,0.00021917,2]
[320081382,1711140636182,-500.0,0.00021917,2]
[320081383,1711140636193,-500.0,0.00021917,2]
[320081384,1711140636203,-500.0,0.00021917,2]
[320081385,1711140636214,-905.11,0.00021917,2]
[320081386,1711140636225,-500.0,0.00021917,2]
[320081387,1711140636235,-1272.51,0.00021917,2]
[320081388,1711140636246,-500.0,0.00021917,2]
[320081389,1711140636256,-1382.54,0.00021917,2]
[320081390,1711140636274,-504.41794057,0.00021917,2]
[320081391,1711140636286,-500.0,0.00021917,2]
[320081392,1711140636297,-500.0,0.00021917,2]
[320081393,1711140636307,-500.0,0.00021917,2]
[320081394,1711140636317,-2484.63,0.00021917,2]
[320081395,1711140636327,-2328.51,0.00021917,2]
[320081396,1711140636337,-500.0,0.00021917,2]
[320081397,1711140636348,-500.0,0.00021917,2]
[320081398,1711140636358,-1432.2,0.00021917,2]
[320081399,1711140636371,-500.0,0.00021917,2]
[320081400,1711140636380,-500.0,0.00021917,2]
[320081401,1711140636390,-1079.37,0.00021917,2]
[320081402,1711140636399,-500.0,0.00021917,2]
[320081403,1711140636410,-500.0,0.00021917,2]
[320081404,1711140636419,-2089.46,0.00021917,2]
[320081405,1711140636429,-524.2,0.00021917,2]
[320081406,1711140636438,-1081.96,0.00021917,2]
[320081407,1711140636449,-500.0,0.00021917,2]
[320081408,1711140636459,-688.97,0.00021917,2]
[320081409,1711140636469,-1323.37,0.00021917,2]
[320081410,1711140636479,-1114.92,0.00021917,2]
[320081411,1711140636488,-500.0,0.00021917,2]
[320081412,1711140636497,-500.0,0.00021917,2]
[320081413,1711140636507,-1579.23,0.00021917,2]
[320081414,1711140636521,-2389.36,0.00021917,2]
[320081415,1711140636531,-953.46,0.00021917,2]
[320081416,1711140636541,-500.0,0.00021917,2]
[320081417,1711140636551,-1382.95,0.00021917,2]
[320081418,1711140636561,-500.0,0.00021917,2]
[320081419,1711140636571,-1657.89,0.00021917,2]
[320081420,1711140636581,-500.0,0.00021917,2]
[320081421,1711140636592,-500.0,0.00021917,2]
[320081422,1711140636602,-587.97,0.00021917,2]
[320081423,1711140636613,-500.0,0.00021917,2]
[320081424,1711140636624,-1770.06,0.00021917,2]
[320081425,1711140636634,-500.0,0.00021917,2]
[320081426,1711140636644,-500.0,0.00021917,2]
[320081427,1711140636654,-500.0,0.00021917,2]
[320081428,1711140636664,-1084.52,0.00021917,2]
[320081429,1711140636673,-1735.26,0.00021917,2]
[320081430,1711140636683,-1930.0,0.00021917,2]
[320081431,1711140636693,-500.0,0.00021917,2]
[320081432,1711140636702,-1541.24,0.00021917,2]
[320081433,1711140636711,-500.0,0.00021917,2]
[320081434,1711140636721,-880.62,0.00021917,2]
[320081435,1711140636731,-1551.92,0.00021917,2]
[320081436,1711140636741,-500.0,0.00021917,2]
[320081437,1711140636752,-503.64618411,0.00021917,2]
[320081438,1711140636770,-500.0,0.00021917,2]
[320081439,1711140636781,-1171.57,0.00021917,2]
[320081440,1711140636792,-988.89,0.00021917,2]
[320081441,1711140636802,-500.0,0.00021917,2]
[320081442,1711140636813,-1418.01,0.00021917,2]
[320081443,1711140636824,-500.0,0.00021917,2]
[320081444,1711140636834,-740.66,0.00021917,2]
[320081445,1711140636844,-500.0,0.00021917,2]
[320081446,1711140636855,-1515.29,0.00021917,2]
[320081447,1711140636865,-500.0,0.00021917,2]
[320081448,1711140636876,-500.0,0.00021917,2]
[320081449,1711140636885,-500.0,0.00021917,2]
[320081450,1711140636895,-500.0,0.00021917,2]
[320081451,1711140636904,-388.11562716,0.00021917,2]
[320081452,1711140636914,-1275.98,0.00021917,2]
[320081453,1711140636923,-500.0,0.00021917,2]
[320081454,1711140636932,-500.0,0.00021917,2]
[320081455,1711140636942,-2117.76,0.00021917,2]
[320081456,1711140636951,-983.82,0.00021917,2]
[320081457,1711140636960,-623.59,0.00021917,2]
[320081458,1711140636970,-500.0,0.00021917,2]
[320081459,1711140636979,-500.0,0.00021917,2]
[320081460,1711140636988,-604.15,0.00021917,2]
[320081461,1711140636998,-500.0,0.00021917,2]
[320081462,1711140637007,-500.0,0.00021917,2]
[320081463,1711140637024,-1519.22,0.00021917,2]
[320081464,1711140637034,-500.0,0.00021917,2]
[320081465,1711140637043,-1811.57,0.00021917,2]
[320081466,1711140637053,-500.0,0.00021917,2]
[320081467,1711140637062,-506.14084102,0.00021917,2]
[320081468,1711140637072,-500.0,0.00021917,2]
[320081469,1711140637081,-2140.76,0.00021917,2]
[320081470,1711140637091,-500.0,0.00021917,2]
[320081471,1711140637100,-1099.74,0.00021917,2]
[320081472,1711140637110,-531.9,0.00021917,2]
[320081473,1711140637120,-504.7415342,0.00021917,2]
[320081474,1711140637129,-737.18,0.00021917,2]
[320081475,1711140637138,-1476.77,0.00021917,2]
[320081476,1711140637148,-500.0,0.00021917,2]
[320081477,1711140637159,-1772.29,0.00021917,2]
[320081478,1711140637169,-500.0,0.00021917,2]
[320081479,1711140637178,-981.77,0.00021917,2]
[320081480,1711140637187,-500.0,0.00021917,2]
[320081481,1711140637196,-1804.62,0.00021917,2]
[320081482,1711140637206,-923.91,0.00021917,2]
[320081483,1711140637215,-500.0,0.00021917,2]
[320081484,1711140637225,-517.66,0.00021917,2]
[320081485,1711140637234,-500.0,0.00021917,2]
[320081486,1711140637243,-545.22,0.00021917,2]
[320081487,1711140637252,-1355.55,0.00021917,2]
[320081488,1711140637267,-500.0,0.00021917,2]
[320081489,1711140637276,-2702.33,0.00021917,2]
[320081490,1711140637286,-500.0,0.00021917,2]
[320081491,1711140637296,-500.0,0.00021917,2]
[320081492,1711140637306,-500.0,0.00021917,2]
[320081493,1711140637316,-1122.1,0.00021917,2]
[320081494,1711140637325,-500.0,0.00021917,2]
[320081495,1711140637334,-500.0,0.00021917,2]
[320081496,1711140637343,-1251.93,0.00021917,2]
[320081497,1711140637353,-1059.93,0.00021917,2]
[320081498,1711140637363,-1056.36,0.00021917,2]
[320081499,1711140637372,-955.58,0.00021917,2]
[320081500,1711140637381,-962.79,0.00021917,2]
[320081501,1711140637393,-500.0,0.00021917,2]
[320081502,1711140637402,-1343.02,0.00021917,2]
[320081503,1711140637411,-500.0,0.00021917,2]
[320081504,1711140637420,-500.0,0.00021917,2]
[320081505,1711140637430,-500.0,0.00021917,2]
[320081506,1711140637439,-500.0,0.00021917,2]
[320081507,1711140637448,-801.37,0.00021917,2]
[320081508,1711140637458,-500.0,0.00021917,2]
[320081509,1711140637468,-748.7,0.00021917,2]
[320081510,1711140637477,-500.0,0.00021917,2]
[320081511,1711140637487,-500.0,0.00021917,2]
[320081512,1711140637497,-500.0,0.00021917,2]
[320081513,1711140637506,-1885.21,0.00021917,2]
[320081514,1711140637521,-1443.34,0.00021917,2]
[320081515,1711140637531,-505.12808226,0.00021917,2]
[320081516,1711140637541,-546.24,0.00021917,2]
[320081517,1711140637551,-500.0,0.00021917,2]
[320081518,1711140637561,-1283.29,0.00021917,2]
[320081519,1711140637571,-1283.29,0.00021917,2]
[320081520,1711140637581,-500.0,0.00021917,2]